bitfinex-derivatives/quotes_ETHF0:USTF0_20250530
["timestamp","ask_amount","ask_price","bid_price","bid_amount"]
[1748614702535,1.9664,2585.9,2585.8,3.98105]
[1748614702723,1.3203,2585.9,2585.8,3.98105]
[1748614703232,2.09352,2585.9,2585.8,3.98105]
[1748614703529,1.9321,2587.2,2586.5,0.77304]
[1748614703722,1.3203,2586.7,2586.5,8.67284]
[1748614704827,0.84294857,2586.6,2586.5,8.67284]
[1748614705128,0.06993857,2586.6,2586.5,8.67284]
[1748614705536,1.30403857,2586.6,2586.5,8.67284]
[1748614706031,2.07704857,2586.6,2586.5,8.67284]
[1748614706233,2.07704857,2586.6,2586.5,4.692]
[1748614706437,1.30403857,2586.6,2585.9,3.2078]
[1748614706638,0.6534,2586.5,2586.4,0.77307]
[1748614707026,1.30403857,2586.6,2586.5,0.77304]
[1748614707227,1.30403857,2586.6,2586.5,3.98084]
[1748614707533,1.30403857,2586.6,2586.4,4.676]
[1748614707534,0.77304,2586.5,2586.4,4.676]
[1748614707733,0.77306,2586.5,2586.4,5.44906]
[1748614707933,2.07706857,2586.6,2586.5,0.77304]
[1748614708141,0.84296857,2586.6,2586.5,3.98084]
[1748614708437,0.06993857,2586.6,2586.5,3.98084]
[1748614708829,0.84294857,2586.6,2586.5,3.2078]
[1748614709233,0.84294857,2586.6,2586.5,3.98084]
[1748614709732,0.06993857,2586.6,2586.5,3.98084]
[1748614712345,0.06993857,2586.6,2586.5,5.27014]
[1748614713135,3.2078,2587.7,2586.5,9.4971]
[1748614713341,0.77273,2587.6,2587.5,0.77271]
[1748614713537,0.77273,2587.7,2587.6,0.77269]
[1748614714143,0.77273,2587.7,2587.4,1.93192]
[1748614714144,0.77277,2587.5,2587.4,0.77274]
[1748614714345,0.77274,2587.6,2587.5,0.77272]
[1748614714743,1.2891,2587.8,2587.6,0.77269]
[1748614715040,0.77272,2587.7,2587.6,3.98049]
[1748614715245,1.2891,2587.8,2587.7,0.77268]
[1748614715435,0.0057999,2587.9,2587.8,0.77265]
[1748614715635,0.77265,2587.8,2587.7,5.44866]
[1748614715831,0.0057999,2587.9,2587.8,0.77265]
[1748614716246,0.7784199,2587.9,2587.8,0.77265]
[1748614716839,0.77268,2587.8,2587.7,0.77266]
[1748614717046,0.77268,2587.8,2587.7,4.676]
[1748614717245,0.77268,2587.7,2587.6,3.2078]
[1748614717538,0.00689923,2587.6,2587.5,5.44774]
[1748614717741,0.77960923,2587.6,2587.5,5.44774]
[1748614717941,0.00689923,2587.6,2587.5,4.675]
[1748614718147,0.77274,2587.5,2587.4,0.0057999]
[1748614718336,0.77274,2587.5,2587.4,5.4535599]
[1748614718542,0.0768378,2587.6,2587.5,0.77274]
[1748614718943,0.77274,2587.5,2587.4,5.4535599]
[1748614719342,1.39154,2587.5,2587.4,4.6807999]
[1748614719651,2.06684,2587.5,2587.4,4.6807999]
[1748614720040,2.06684,2587.5,2587.4,0.0057999]
[1748614720241,2.06684,2587.5,2587.4,0.7785699]
[1748614721048,3.35324,2587.5,2587.4,0.0057999]
[1748614721650,1.93209,2587.2,2586.7,7.8828]
[1748614721944,2.05929,2587.1,2587.0,0.77289]
[1748614722154,0.77286,2587.2,2587.1,0.77285]
[1748614722452,0.77288,2587.1,2587.0,0.77287]
[1748614722645,2.05928,2587.1,2587.0,0.77287]
[1748614722847,2.05928,2587.1,2587.0,0.77289]
[1748614723351,1.2864,2587.1,2586.8,0.00386662]
[1748614723655,1.2864,2587.1,2586.6,1.2853]
[1748614723656,0.77313,2586.2,2586.1,8.65594]
[1748614723850,1.93231,2586.9,2586.1,7.8828]
[1748614723851,1.93235,2586.9,2586.1,7.8828]
[1748614724054,0.77304,2586.5,2586.4,3.98085]
[1748614724353,0.77291,2587.0,2586.9,0.77291]
[1748614724556,2.0781399,2587.2,2587.1,0.77286]
[1748614724859,1.3052999,2587.2,2586.8,3.2078]
[1748614725049,0.77288,2587.1,2587.0,0.77288]
[1748614725249,1.3052999,2587.2,2587.1,0.77286]
[1748614725449,0.77287,2587.1,2587.0,0.77287]
[1748614726352,0.77292,2586.9,2586.8,5.26603]
[1748614726657,0.77292,2586.9,2586.8,3.2078]
[1748614727261,0.77298,2586.7,2586.6,4.675]
[1748614727462,0.77298,2586.7,2586.2,7.8828]
[1748614727760,0.7731,2586.3,2586.2,8.65591]
[1748614727949,0.77313,2586.2,2586.1,1.2485]
[1748614728149,0.77313,2586.2,2585.8,3.8716]
[1748614728150,0.77322,2585.9,2585.8,3.2078]
[1748614728357,5.795,2586.1,2585.1,3.2078]
[1748614728559,0.0057999,2585.9,2585.4,0.77336]
[1748614728759,1.2921999,2585.9,2585.8,0.77325]
[1748614729353,1.2921999,2585.9,2585.8,3.98105]
[1748614729960,1.2921999,2585.9,2585.8,3.2078]
[1748614730266,2.0654199,2585.9,2585.8,3.2078]
[1748614730461,1.2921999,2585.9,2585.8,3.98105]
[1748614730761,2.0654199,2585.9,2585.8,3.2078]
[1748614730959,2.0654199,2585.9,2585.0,4.675]
[1748614730960,0.77346,2585.1,2585.0,4.675]
[1748614731157,3.2078,2585.6,2585.0,4.675]
[1748614731358,3.83147,2585.5,2585.0,4.675]
[1748614731666,0.77346,2585.1,2585.0,4.675]
[1748614733064,1.3075,2585.3,2585.2,0.77343]
[1748614734163,2.08092,2585.3,2585.1,3.98124]
[1748614734358,1.3075,2585.3,2585.2,0.77343]
[1748614734558,0.84325857,2585.6,2585.1,3.2078]
[1748614734866,0.06993857,2585.6,2585.5,0.77334]
[1748614735063,1.38703857,2585.6,2585.5,0.77334]
[1748614735261,2.16034857,2585.6,2585.5,0.77334]
[1748614735460,1.38703857,2585.6,2585.5,3.98114]
[1748614735871,2.16034857,2585.6,2585.5,3.98114]
[1748614736263,1.38703857,2585.6,2585.5,3.98114]
[1748614736470,0.6455,2586.4,2585.8,0.77325]
[1748614736662,1.3171,2586.1,2585.8,3.98105]
[1748614736967,2.09028,2586.1,2585.8,3.98105]
[1748614737168,0.7732,2586.0,2585.8,3.98105]
[1748614737364,1.3228999,2585.9,2585.8,0.77325]
[1748614737664,2.0961199,2585.9,2585.8,3.98105]
[1748614737971,1.3228999,2585.9,2585.8,3.98105]
[1748614738467,0.0057999,2585.9,2585.8,3.98105]
[1748614740265,9.9e-06,2585.9,2585.8,3.98105]
[1748614740464,9.9e-06,2585.9,2585.8,8.98105]
[1748614740662,1.3325,2586.5,2586.4,0.77307]
[1748614740861,1.3325,2586.5,2586.2,3.2078]
[1748614741163,2.10557,2586.5,2586.4,0.77307]
[1748614741464,1.3325,2586.5,2586.4,0.77307]
[1748614742766,2.10554,2586.5,2586.4,0.77307]
[1748614743059,1.3325,2586.5,2586.4,0.77307]
[1748614743266,2.10554,2586.5,2586.4,0.77307]
[1748614744160,0.77307,2586.4,2586.2,3.2135999]
[1748614744468,1.2583,2586.3,2586.2,3.2135999]
[1748614744969,2.0314,2586.3,2586.2,3.2135999]
[1748614745167,2.6685,2586.3,2586.2,0.0057999]
[1748614745367,0.77325,2585.9,2585.8,0.77322]
[1748614745574,0.77325,2585.9,2585.8,3.98102]
[1748614745868,0.77321,2586.0,2585.8,3.2078]
[1748614746066,1.2583,2585.9,2585.8,3.98105]
[1748614746268,0.77331,2585.7,2585.6,0.7733]
[1748614746863,1.38817,2585.8,2585.7,0.77328]
[1748614747271,0.6149,2585.8,2585.7,0.77328]
[1748614747464,1.38815,2585.8,2585.7,0.77328]
[1748614747661,0.77331,2585.6,2585.5,3.2078]
[1748614748268,0.7734,2585.3,2585.2,3.2078]
[1748614748566,1.93343,2585.4,2584.9,3.2078]
[1748614748765,1.3173,2585.2,2584.9,3.2078]
[1748614748967,0.77349,2585.0,2584.9,3.98131]
[1748614749166,0.6766,2585.1,2585.0,0.77349]
[1748614749367,1.45009,2585.1,2584.9,3.98129]
[1748614749567,0.7791799,2585.4,2584.9,3.2078]
[1748614749871,0.7791799,2585.4,2584.8,1.93386]
[1748614749872,1.3230999,2585.4,2585.3,0.7734]
[1748614750070,0.0057999,2585.4,2585.3,0.7734]
[1748614750272,0.0057999,2585.4,2585.3,2.0909]
[1748614750571,0.0057999,2585.4,2585.3,7.0909]
[1748614750965,1.3173,2585.8,2585.7,0.77328]
[1748614751164,2.09055,2585.8,2585.7,3.2078]
[1748614751362,1.3173,2585.8,2585.7,3.98108]
[1748614751576,0.6766,2586.0,2585.9,0.77322]
[1748614752069,1.9916,2586.0,2585.7,3.2135999]
[1748614752267,0.77323,2585.9,2585.8,0.77323]
[1748614752570,1.38567,2586.1,2586.0,0.77319]
[1748614752767,1.3207999,2586.2,2585.7,3.2135999]
[1748614752974,0.77319,2586.1,2586.0,0.77318]
[1748614753268,2.0939399,2586.2,2586.1,0.77316]
[1748614753674,0.77319,2586.1,2586.0,0.77318]
[1748614753877,2.11719,2586.1,2586.0,0.77318]
[1748614754177,3.27694,2586.1,2585.7,3.2135999]
[1748614754376,0.77322,2585.9,2585.8,4.665]
[1748614754681,0.77325,2585.8,2585.7,0.0057999]
[1748614754969,2.75035,2585.8,2585.7,0.0057999]
[1748614755170,7.75035,2585.8,2585.7,0.0057999]
[1748614755877,0.77343,2585.2,2585.1,7.8728]
[1748614756266,1.344,2585.4,2585.3,0.7734]
[1748614756575,2.1174,2585.4,2585.3,0.7734]
[1748614756875,1.344,2585.4,2585.3,0.7734]
[1748614757074,0.77352,2584.9,2584.8,3.2078]
[1748614757277,0.77352,2584.9,2584.8,3.98135]
[1748614757975,0.77351,2585.0,2584.9,0.77349]
[1748614758170,2.01418,2585.1,2585.0,0.77349]
[1748614758371,2.01418,2585.1,2585.0,0.58009]
[1748614758781,1.2407,2585.1,2585.0,0.58009]
[1748614759074,2.01416,2585.1,2585.0,0.58009]
[1748614759775,2.01416,2585.1,2584.9,0.7735]
[1748614759776,0.77352,2585.0,2584.9,0.7735]
[1748614759974,0.77352,2584.9,2584.8,8.64733]
[1748614760172,0.77352,2584.9,2584.8,3.2078]
[1748614760375,5.14163,2584.9,2584.3,0.77368]
[1748614760576,1.93403,2584.6,2584.2,8.64752]
[1748614760885,0.77368,2584.4,2584.3,0.77367]
[1748614761179,2.12466,2584.5,2584.4,0.77367]
[1748614761384,0.7737,2584.4,2584.3,0.77368]
[1748614761575,2.1247,2584.4,2584.3,0.77368]
[1748614762076,2.1247,2584.4,2584.2,3.2078]
[1748614762077,0.7737,2584.3,2584.2,3.2078]
[1748614762274,2.1247,2584.3,2584.2,3.98153]
[1748614763175,1.351,2584.3,2583.6,0.6275]
[1748614763374,0.77385,2583.8,2583.7,5.43987]
[1748614763670,1.93443,2584.1,2583.8,0.77382]
[1748614763671,0.77384,2583.9,2583.8,0.77382]
[1748614764182,0.77384,2583.9,2583.7,4.666]
[1748614764183,0.77385,2583.8,2583.7,4.666]
[1748614764475,0.77391,2583.7,2583.6,0.77389]
[1748614764772,1.9027,2584.0,2583.6,1.93478]
[1748614764981,1.9027,2584.0,2583.9,0.77382]
[1748614764982,2.67652,2584.0,2583.9,0.77382]
[1748614765176,0.77369,2584.4,2584.3,0.77367]
[1748614765377,1.2424,2584.4,2584.0,4.653]
[1748614765678,0.77376,2584.1,2584.0,5.42677]
[1748614765874,0.77376,2584.1,2584.0,0.77377]
[1748614766177,0.77394,2583.5,2583.4,43.641]
[1748614766373,0.77394,2583.5,2583.4,5.42694]
[1748614766575,0.77392,2583.6,2583.5,0.77391]
[1748614766773,1.2283,2583.7,2583.6,0.77391]
[1748614766973,0.77397,2583.4,2583.3,3.2078]
[1748614767177,0.77395,2583.5,2583.4,0.77395]
[1748614767376,1.2283,2583.3,2583.2,1.44123]
[1748614767579,1.2283,2583.3,2582.9,6.5883]
[1748614767775,1.2283,2583.3,2583.2,0.77403]
[1748614768782,0.7796899,2583.7,2583.6,0.77391]
[1748614768978,2.06682,2583.6,2583.5,0.77392]
[1748614769182,1.2929,2583.6,2583.5,0.77392]
[1748614769889,1.2929,2583.6,2583.1,3.2078]
[1748614770088,0.77409,2583.0,2582.9,0.7741]
[1748614770275,1.93502,2583.3,2582.8,4.654]
[1748614770579,0.77412,2582.9,2582.8,5.42815]
[1748614770782,0.77421,2582.6,2582.5,3.2078]
[1748614770981,0.77426,2582.5,2582.4,0.77425]
[1748614771182,2.06716,2582.5,2582.4,0.77425]
[1748614771488,3.2078,2582.9,2582.4,1.93565]
[1748614771780,0.1936,2582.6,2582.5,0.77424]
[1748614771988,0.1936,2582.6,2582.5,6.06814]
[1748614772686,0.1936,2582.6,2582.5,9.27594]
[1748614772879,3.98182,2583.3,2583.2,0.77403]
[1748614773075,0.77406,2583.1,2582.7,1.93538]
[1748614773280,3.98182,2583.3,2583.2,0.77403]
[1748614773478,3.98182,2583.3,2583.0,4.655]
[1748614773479,3.2078,2583.3,2583.0,4.655]
[1748614773688,0.77404,2583.2,2583.1,0.77403]
[1748614774282,1.3397,2583.2,2583.0,5.42907]
[1748614774581,2.11375,2583.2,2583.0,4.655]
[1748614774881,1.3397,2583.2,2583.1,0.77406]
[1748614775388,2.11373,2583.2,2583.1,0.77406]
[1748614776190,0.77406,2583.1,2583.0,5.42907]
[1748614776389,2.11375,2583.2,2583.1,0.77406]
[1748614777182,0.06993857,2583.3,2583.2,0.77403]
[1748614778375,0.06993857,2583.3,2583.0,4.655]
[1748614778582,0.77406,2583.1,2583.0,4.655]
[1748614779392,2.00756,2583.1,2583.0,4.655]
[1748614779891,5.21536,2583.1,2583.0,4.655]
[1748614780180,0.77413,2582.9,2582.8,0.77413]
[1748614780585,0.77415,2582.8,2582.7,5.43016]
[1748614780983,0.77414,2582.9,2582.8,0.77413]
[1748614781187,1.2335,2583.1,2582.7,4.656]
[1748614781188,0.77415,2582.8,2582.7,4.656]
[1748614781688,0.77415,2582.8,2582.7,5.43018]
[1748614781887,1.2335,2583.1,2582.8,0.77413]
[1748614782086,1.2335,2583.1,2582.8,0.77411]
[1748614782087,0.77413,2582.9,2582.8,0.77411]
[1748614782482,2.00759,2583.1,2583.0,0.77409]
[1748614783376,0.77412,2583.0,2582.9,0.7741]
[1748614783581,2.04002,2583.0,2582.9,0.7741]
[1748614783782,1.2659,2583.0,2582.9,0.7741]
[1748614784280,3.2078,2583.4,2582.9,5.0]
[1748614784485,0.774,2583.4,2583.0,5.14303]
[1748614784693,2.04888,2583.5,2583.4,0.77397]
[1748614784990,0.774,2583.3,2583.2,5.42999]
[1748614785191,1.2749,2583.5,2583.4,0.77397]
[1748614785388,0.0057999,2583.7,2583.6,0.77391]
[1748614785389,0.7796899,2583.7,2583.6,0.77391]
[1748614785780,1.2806999,2583.7,2583.3,3.8784]
[1748614786091,0.77397,2583.4,2583.3,7.8638]
[1748614786686,1.93494,2583.4,2582.9,3.2078]
[1748614786992,0.77409,2583.1,2583.0,5.43007]
[1748614787391,2.11884857,2583.3,2583.2,0.77403]
[1748614787592,0.06993857,2583.3,2583.2,0.77403]
[1748614789195,0.0057999,2583.7,2583.3,1.93498]
[1748614789407,0.0057999,2583.7,2583.4,1.321]
[1748614789596,0.96744,2583.6,2583.5,5.42991]
[1748614789792,2.27654,2583.6,2583.5,5.42991]
[1748614790790,0.1935,2583.6,2583.5,8.63771]
[1748614792200,0.0057999,2583.7,2583.5,8.63771]
[1748614792201,0.71443857,2584.4,2583.5,12.8638]
[1748614792394,0.06993857,2584.4,2584.3,0.7737]
[1748614792586,0.84360857,2584.4,2584.3,4.656]
[1748614792890,0.06993857,2584.4,2584.3,5.4297]
[1748614793288,0.6811999,2584.6,2584.3,4.656]
[1748614793493,1.3293,2584.5,2584.4,0.77367]
[1748614794002,2.10294,2584.5,2584.4,0.77367]
[1748614794196,2.10294,2584.5,2584.4,3.98147]
[1748614794492,1.3293,2584.5,2584.4,3.98147]
[1748614796195,0.77364,2584.5,2584.4,3.98147]
[1748614796390,0.7794199,2584.6,2584.5,0.77364]
[1748614796694,0.0057999,2584.6,2584.5,0.77364]
[1748614797094,0.0057999,2584.6,2584.5,2.13054]
[1748614800294,3.2078,2586.0,2584.5,6.65583993]
[1748614800497,3.2078,2586.0,2585.3,3.2078]
[1748614800698,0.77336,2585.5,2585.4,5.41235]
[1748614800900,0.77336,2585.5,2585.4,4.639]
[1748614801098,0.77337,2585.4,2585.3,3.98119]
[1748614801298,2.08177,2585.4,2585.3,8.62019]
[1748614801900,0.77346,2585.2,2585.1,4.639]
[1748614802101,0.77342,2585.3,2585.2,0.7734]
[1748614802710,0.77343,2585.2,2585.1,5.41244]
[1748614803003,0.77343,2585.3,2585.2,0.77341]
[1748614803198,0.77346,2585.1,2585.0,3.2078]
[1748614803405,0.77355,2584.9,2584.8,5.41254]
[1748614803602,1.2243,2585.0,2584.9,0.77352]
[1748614803807,1.44585,2585.5,2585.4,0.77337]
[1748614804012,2.67015,2585.5,2585.4,0.77337]
[1748614804610,1.8968,2585.5,2585.4,0.77337]
[1748614804806,2.67014,2585.5,2585.4,0.77337]
[1748614805009,0.0057999,2585.6,2585.5,0.77334]
[1748614805211,0.0057999,2585.6,2585.4,3.2078]
[1748614805212,0.77334,2585.5,2585.4,3.2078]
[1748614805504,2.0034199,2585.6,2585.4,3.2078]
[1748614805711,0.77334,2585.5,2585.4,3.2078]
[1748614806006,2.01774,2585.5,2585.4,3.2078]
[1748614806604,2.01774,2585.5,2585.4,7.8458]
[1748614806799,2.01774,2585.5,2585.4,8.61917]
[1748614807105,0.0057999,2585.6,2585.5,0.77334]
[1748614807807,0.7791099,2585.6,2585.5,0.77334]
[1748614808006,2.0235099,2585.6,2585.5,0.77334]
[1748614808206,0.77334,2585.5,2585.4,8.61915]
[1748614808407,2.0235299,2585.6,2585.5,0.77334]
[1748614808602,1.2501999,2585.6,2585.5,0.77334]
[1748614808808,0.0057999,2585.6,2585.5,0.77334]
[1748614809007,1.9605,2586.1,2585.6,1.93321]
[1748614809314,2.73368,2586.1,2586.0,0.77319]
[1748614809608,1.3312,2586.1,2586.0,5.41119]
[1748614809815,5.2972,2586.7,2586.6,0.77301]
[1748614810011,4.5242,2586.7,2586.6,0.77301]
[1748614810314,5.29718,2586.7,2586.6,0.77301]
[1748614810514,4.65948,2586.7,2586.6,0.77301]
[1748614810716,3.8865,2586.7,2586.6,0.77301]
[1748614811008,4.65948,2586.7,2586.6,0.77301]
[1748614811211,5.2177,2586.7,2586.6,0.77301]
[1748614811607,5.2177,2586.7,2586.5,4.637]
[1748614812007,0.77301,2586.6,2586.5,4.637]
[1748614812203,2.05701,2586.6,2586.5,4.637]
[1748614812505,1.284,2586.6,2586.3,3.2078]
[1748614812703,0.0057999,2586.9,2586.8,0.77295]
[1748614812905,3.2078,2587.4,2586.7,3.2078]
[1748614813100,4.4918,2587.4,2587.0,3.2078]
[1748614813309,0.77283,2587.2,2587.1,5.40984]
[1748614813909,0.77286,2587.1,2587.0,3.2078]
[1748614814109,0.77304,2586.5,2586.4,42.1988]
[1748614814417,0.77304,2586.5,2586.4,43.628]
[1748614814724,0.77304,2586.5,2586.4,4.637]
[1748614816915,6.93262,2586.5,2585.8,0.0057999]
[1748614817123,0.77319,2586.0,2585.9,4.636]
[1748614817327,0.77318,2586.1,2586.0,0.77315]
[1748614818024,0.77319,2586.0,2585.9,7.8438]
[1748614818225,1.2558,2586.0,2585.9,8.61702]
[1748614818521,2.02899,2586.0,2585.9,8.61702]
[1748614818722,1.2558,2586.0,2585.9,8.61702]
[1748614818921,2.02899,2586.0,2585.9,8.61702]
[1748614819340,1.2558,2586.0,2585.9,8.61702]
[1748614819616,2.02899,2586.0,2585.9,7.8438]
[1748614819921,2.09892857,2586.0,2585.9,7.8438]
[1748614820221,2.09892857,2586.0,2585.9,8.61702]
[1748614820626,2.09892857,2586.0,2585.9,7.8438]
[1748614821016,2.09892857,2586.0,2585.9,8.61702]
[1748614821921,1.32573857,2586.0,2585.9,8.61702]
[1748614822123,0.06993857,2586.0,2585.9,8.61702]
[1748614822323,0.06993857,2586.0,2585.9,9.85182]
[1748614822518,1.93255,2586.6,2585.9,9.85182]
[1748614822519,1.3274,2586.7,2586.2,0.77313]
[1748614822726,1.2407,2586.6,2586.5,0.77301]
[1748614822921,4.5352,2587.1,2586.5,4.636]
[1748614823128,1.2407,2587.0,2586.9,0.77289]
[1748614823424,3.2078,2587.1,2586.9,0.77289]
[1748614823726,1.2464999,2587.4,2587.0,4.636]
[1748614823928,0.77285,2587.2,2587.1,0.77283]
[1748614824118,0.77286,2587.2,2587.1,0.77284]
[1748614825226,0.77286,2587.2,2587.0,4.636]
[1748614825227,0.77286,2587.1,2587.0,5.40888]
[1748614825428,1.2543,2587.1,2587.0,5.40888]
[1748614825723,2.02716,2587.1,2587.0,5.39088]
[1748614826027,1.2543,2587.1,2587.0,5.39088]
[1748614826327,1.2543,2587.1,2587.0,0.77288]
[1748614826523,1.2543,2587.1,2587.0,5.39088]
[1748614827225,1.3023999,2587.4,2587.3,0.7728]
[1748614827531,0.0057999,2587.4,2587.3,0.7728]
[1748614827827,0.0057999,2587.4,2587.0,1.267]
[1748614828022,0.77286,2587.2,2587.1,4.618]
[1748614828231,0.77289,2587.0,2586.9,8.59871]
[1748614828825,1.93238,2586.9,2586.4,3.2078]
[1748614829027,0.77304,2586.6,2586.5,0.77301]
[1748614829323,4.5044,2586.9,2586.3,4.618]
[1748614829526,0.77307,2586.4,2586.3,4.618]
[1748614829728,4.5044,2586.9,2586.6,0.773]
[1748614829925,1.3476,2586.7,2586.6,0.773]
[1748614830125,2.1206,2586.7,2586.6,0.77301]
[1748614830331,1.3476,2586.7,2586.6,0.77301]
[1748614830527,3.2078,2586.9,2586.8,0.77295]
[1748614830730,0.77291,2587.0,2586.9,0.7729]
[1748614831024,0.77288,2587.1,2587.0,0.77286]
[1748614831223,0.0057999,2587.4,2586.9,1.93225]
[1748614831424,0.0057999,2587.4,2587.3,0.7728]
[1748614831630,0.0057999,2587.4,2587.3,5.3908]
[1748614831833,0.7785699,2587.4,2587.3,5.3908]
[1748614832023,0.0057999,2587.4,2587.3,5.3908]
[1748614832228,2.1261699,2587.4,2587.3,5.3908]
[1748614833635,2.1261699,2587.4,2587.2,3.2078]
[1748614833636,0.77282,2587.3,2587.2,4.618]
[1748614833931,2.06652,2587.3,2587.2,4.618]
[1748614834235,2.06652,2587.3,2587.2,5.39083]
[1748614834434,1.2937,2587.3,2587.2,5.39083]
[1748614834640,2.0665,2587.3,2587.2,5.39083]
[1748614834826,1.2937,2587.3,2587.2,5.39083]
[1748614835027,0.07573847,2587.4,2587.3,0.7728]
[1748614835935,2.15290847,2587.4,2587.3,0.7728]
[1748614836129,1.38013847,2587.4,2587.3,0.7728]
[1748614836829,0.07573847,2587.4,2587.3,0.7728]
[1748614837534,1.38013847,2587.4,2587.3,0.7728]
[1748614837831,1.38013847,2587.4,2587.3,5.3898]
[1748614838237,1.38013847,2587.4,2587.3,0.7728]
[1748614838539,2.15290847,2587.4,2587.3,4.617]
[1748614838835,1.38013847,2587.4,2587.1,3.2078]
[1748614839038,1.38013847,2587.4,2587.0,4.617]
[1748614839039,0.77287,2587.1,2587.0,4.617]
[1748614839538,2.05417,2587.1,2587.0,4.617]
[1748614840037,2.05417,2587.1,2587.0,5.38989]
[1748614840233,2.05417,2587.1,2587.0,4.617]
[1748614840631,2.05417,2587.1,2587.0,5.38989]
[1748614841032,1.2813,2587.1,2587.0,5.38989]
[1748614841941,0.07573847,2587.4,2587.0,9.75703]
[1748614842132,0.07573847,2587.4,2587.3,0.7728]
[1748614843633,0.07573847,2587.4,2587.3,3.9806]
[1748614844238,1.9953,2587.8,2587.3,3.2078]
[1748614844438,2.76797,2587.8,2587.7,0.77268]
[1748614844939,1.9953,2587.8,2587.7,0.77268]
[1748614845137,1.3309,2587.8,2587.7,0.77268]
[1748614845336,0.0057999,2588.0,2587.9,0.77262]
[1748614845543,0.0057999,2588.0,2587.9,3.98042]
[1748614846342,0.0057999,2588.0,2587.9,5.24512]
[1748614846941,0.77271,2587.6,2587.5,7.8295999]
[1748614847133,0.77271,2587.6,2587.5,0.0057999]
[1748614847642,2.08401,2587.6,2587.5,0.0057999]
[1748614848343,2.08401,2587.6,2587.5,0.7785399]
[1748614848639,1.3113,2587.6,2587.5,0.7785399]
[1748614848946,2.08401,2587.6,2587.5,0.7785399]
[1748614849138,2.15394857,2587.6,2587.5,0.7785399]
[1748614849445,1.38123857,2587.6,2587.5,0.7785399]
[1748614849696,2.15394857,2587.6,2587.5,0.7785399]
[1748614850741,2.15394857,2587.6,2587.5,0.0057999]
[1748614851444,2.15394857,2587.6,2587.5,0.7785399]
[1748614851642,0.06993857,2587.6,2587.5,0.7785399]
[1748614853046,1.39943857,2587.6,2587.5,0.7785399]
[1748614853244,1.39943857,2587.6,2587.5,5.3945399]
[1748614853434,2.17214857,2587.6,2587.5,5.3945399]
[1748614853639,2.17214857,2587.6,2587.5,4.6217999]
[1748614853841,2.17214857,2587.6,2587.5,0.0057999]
[1748614855546,7.17214857,2587.6,2587.5,0.0057999]
[1748614855945,2.17214857,2587.6,2587.5,0.0057999]
[1748614856242,0.0057999,2588.0,2587.9,0.77262]
[1748614856449,0.0057999,2588.0,2587.9,8.57842]
[1748614856639,0.0057999,2588.0,2587.9,5.37062]
[1748614856849,0.77271,2587.6,2587.5,4.6037999]
[1748614857043,3.2078,2587.8,2587.5,4.6037999]
[1748614857243,3.2078,2587.8,2587.6,0.77271]
[1748614857244,1.3094,2587.7,2587.6,0.77271]
[1748614857439,0.77271,2587.6,2587.5,4.6037999]
[1748614857650,1.3094,2587.7,2587.6,0.77271]
[1748614859453,2.08208,2587.7,2587.6,0.77271]
[1748614859751,1.3094,2587.7,2587.6,0.77271]
[1748614860149,1.3094,2587.7,2587.5,5.3765399]
[1748614860349,0.06993857,2587.6,2587.5,5.3765399]
[1748614860747,0.06993857,2587.6,2587.5,6.7327399]
[1748614861051,0.0057999,2588.0,2587.5,6.7327399]
[1748614861052,0.0057999,2588.0,2587.9,0.77262]
[1748614861360,0.0057999,2588.0,2587.9,3.98042]
[1748614862050,0.0057999,2588.0,2587.9,5.33662]
[1748614862548,0.77268,2587.7,2587.6,4.598]
[1748614863260,0.77271,2587.6,2587.5,0.0057999]
[1748614863555,2.07634857,2587.6,2587.5,0.0057999]
[1748614863758,1.30363857,2587.6,2587.5,0.7785399]
[1748614864161,2.07634857,2587.6,2587.5,0.7785399]
[1748614864659,7.07634857,2587.6,2587.5,0.0057999]
[1748614865059,2.07634857,2587.6,2587.5,0.0057999]
[1748614865254,7.07634857,2587.6,2587.5,0.0057999]
[1748614865455,2.07634857,2587.6,2587.5,0.0057999]
[1748614865654,2.07634857,2587.6,2587.5,0.7785399]
[1748614865957,2.07634857,2587.6,2587.5,0.0057999]
[1748614866154,1.30363857,2587.6,2587.5,0.0057999]
[1748614866359,1.30363857,2587.6,2587.5,0.7785399]
[1748614867156,1.93194,2587.5,2586.9,3.8673]
[1748614867353,4.5309,2587.4,2587.3,0.7728]
[1748614867549,1.3231,2587.4,2587.3,3.9806]
[1748614867761,0.06993857,2587.6,2587.5,0.77274]
[1748614868959,0.0057999,2588.0,2587.9,0.77262]
[1748614869155,0.0057999,2588.0,2587.9,5.37062]
[1748614870265,5.75334,2588.9,2587.9,5.37062]
[1748614870266,0.6147,2588.9,2588.7,0.77238]
[1748614870564,0.77229,2589.0,2588.9,0.77231]
[1748614870865,3.98004,2589.2,2589.1,0.77227]
[1748614871061,3.2078,2589.2,2589.1,0.77227]
[1748614871962,3.2078,2589.2,2589.0,0.77227]
[1748614872162,3.2078,2589.2,2589.1,0.77227]
[1748614872467,0.77229,2589.0,2588.9,4.6037999]
[1748614872861,5.77229,2589.0,2588.9,0.0057999]
[1748614873061,5.77229,2589.0,2588.5,4.598]
[1748614873062,0.77241,2588.6,2588.5,4.598]
[1748614873364,3.98021,2588.6,2588.5,4.598]
[1748614873566,0.7725,2588.3,2588.2,0.77251]
[1748614873760,0.77248,2588.4,2588.3,0.77248]
[1748614873955,0.6406,2588.5,2588.4,0.77247]
[1748614875570,1.94142909,2589.1,2588.4,0.77247]
[1748614875571,3.2078,2589.0,2588.4,4.597]
[1748614875764,1.40286909,2589.1,2588.6,1.93098]
[1748614875969,0.77238,2588.8,2588.7,0.77238]